fUSD/lending_fUSD_20250906
["ID","MTS","AMOUNT","RATE_DAILY","PERIOD"]
[383910955,1757171523568,-541.63,0.00036986,8]
[383910956,1757171523578,-488.65296312,0.00036986,8]
[383910957,1757171523588,-400.0,0.00036986,8]
[383910958,1757171523599,-400.0,0.00036986,8]
[383910959,1757171523609,-562.57,0.00036986,8]
[383910960,1757171523619,-400.0,0.00036986,8]
[383910961,1757171523630,-789.78301001,0.00036991,30]
[383910962,1757171523647,-500.0,0.00036999,8]
[383910963,1757171523657,-500.0,0.00036999,8]
[383910964,1757171523666,-500.0,0.00036999,8]
[383910965,1757171523676,-500.0,0.00036999,8]
[383910966,1757171523688,-500.0,0.00036999,8]
[383910967,1757171523707,-500.0,0.00036999,8]
[383910968,1757171523717,-500.0,0.00036999,8]
[383910969,1757171523727,-350.9,0.00037,120]
[383910970,1757171523737,-514.85095374,0.00037,7]
[383910971,1757171523747,-2026.67099948,0.0003716,2]
[383910972,1757171523757,-3015.20803179,0.0003716,2]
[383910973,1757171523767,-1734.58709464,0.00037171,4]
[383910974,1757171523783,-1734.58709463,0.00037171,4]
[383910975,1757171523793,-176.89170929,0.00037175,2]
[383910976,1757171523803,-1425.0,0.00037181,2]
[383910977,1757171523812,-1425.0,0.00037213,2]
[383910978,1757171523822,-1425.0,0.00037222,2]
[383910979,1757171523832,-2917.01125982,0.00037229,9]
[383910980,1757171523842,-829.65849751,0.00037236,2]
[383910981,1757171523852,-160.34123657,0.00037258,2]
[383910982,1757171523862,-500.0,0.00037259,8]
[383910983,1757171523872,-670.38,0.00037259,8]
[383910984,1757171523974,-400.0,0.0003726,8]
[383910985,1757171523984,-400.0,0.0003726,8]
[383910986,1757171523994,-211.859912,0.0003726,8]
[383910987,1757171524004,-271.87447,0.0003726,8]
[383910988,1757171524014,-400.0,0.0003726,8]
[383910989,1757171524024,-239.72691137,0.0003726,8]
[383910990,1757171524034,-400.0,0.0003726,8]
[383910991,1757171524044,-400.0,0.0003726,8]
[383910992,1757171524054,-313.393461,0.0003726,8]
[383910993,1757171524064,-400.0,0.0003726,8]
[383910994,1757171524074,-400.0,0.0003726,8]
[383910995,1757171524084,-400.0,0.0003726,8]
[383910996,1757171524094,-286.1979955,0.0003726,8]
[383910997,1757171524104,-400.0,0.0003726,8]
[383910998,1757171524116,-453.94,0.0003726,8]
[383910999,1757171524127,-400.0,0.0003726,8]
[383911000,1757171524137,-659.2,0.0003726,8]
[383911001,1757171524147,-400.0,0.0003726,8]
[383911002,1757171524157,-400.0,0.0003726,8]
[383911003,1757171524167,-400.0,0.0003726,8]
[383911004,1757171524177,-400.0,0.0003726,8]
[383911005,1757171524187,-464.23074976,0.0003726,8]
[383911006,1757171524197,-576.91,0.0003726,8]
[383911007,1757171524206,-400.0,0.0003726,8]
[383911008,1757171524216,-571.77,0.0003726,8]
[383911009,1757171524226,-455.16,0.0003726,8]
[383911010,1757171524236,-693.34,0.0003726,8]
[383911011,1757171524246,-400.0,0.0003726,8]
[383911012,1757171524256,-400.0,0.0003726,8]
[383911013,1757171524266,-650.71,0.0003726,8]
[383911014,1757171524275,-403.0,0.0003726,8]
[383911015,1757171524285,-400.0,0.0003726,8]
[383911016,1757171524294,-400.0,0.0003726,8]
[383911017,1757171524303,-514.75063607,0.0003726,8]
[383911018,1757171524313,-400.0,0.0003726,8]
[383911019,1757171524322,-409.62717943,0.0003726,8]
[383911020,1757171524332,-705.36,0.0003726,8]
[383911021,1757171524342,-998.89,0.0003726,8]
[383911022,1757171524351,-581.35,0.0003726,8]
[383911023,1757171524361,-400.0,0.0003726,8]
[383911024,1757171524371,-400.0,0.0003726,8]
[383911025,1757171524381,-400.0,0.0003726,8]
[383911026,1757171524391,-409.23036143,0.0003726,8]
[383911027,1757171524401,-400.0,0.0003726,8]
[383911028,1757171524411,-400.0,0.0003726,8]
[383911029,1757171524421,-400.0,0.0003726,8]
[383911030,1757171524430,-400.0,0.0003726,8]
[383911031,1757171524440,-400.0,0.0003726,8]
[383911032,1757171524449,-412.63,0.0003726,8]
[383911033,1757171524459,-438.63,0.0003726,8]
[383911034,1757171524468,-603.08,0.0003726,8]
[383911035,1757171524478,-412.39384035,0.0003726,8]
[383911036,1757171524487,-400.0,0.0003726,8]
[383911037,1757171524498,-400.0,0.0003726,8]
[383911038,1757171524507,-400.0,0.0003726,8]
[383911039,1757171524517,-400.0,0.0003726,8]
[383911040,1757171524526,-400.0,0.0003726,8]
[383911041,1757171524536,-400.0,0.0003726,8]
[383911042,1757171524546,-400.0,0.0003726,8]
[383911043,1757171524557,-400.0,0.0003726,8]
[383911044,1757171524567,-400.0,0.0003726,8]
[383911045,1757171524577,-400.0,0.0003726,8]
[383911046,1757171524586,-400.0,0.0003726,8]
[383911047,1757171524596,-400.0,0.0003726,8]
[383911048,1757171524606,-400.0,0.0003726,8]
[383911049,1757171524615,-452.6,0.0003726,8]
[383911050,1757171524625,-400.0,0.0003726,8]
[383911051,1757171524635,-352.47672971,0.0003726,8]
[383911052,1757171524645,-400.0,0.0003726,8]
[383911053,1757171524654,-1283.92,0.0003726,8]
[383911054,1757171524663,-579.45,0.0003726,8]
[383911055,1757171524673,-651.77,0.0003726,8]
[383911056,1757171524683,-400.0,0.0003726,8]
[383911057,1757171524692,-400.0,0.0003726,8]
[383911058,1757171524702,-400.0,0.0003726,8]
[383911059,1757171524711,-490.29,0.0003726,8]
[383911060,1757171524721,-400.0,0.0003726,8]
[383911061,1757171524730,-400.0,0.0003726,8]
[383911062,1757171524739,-400.0,0.0003726,8]
[383911063,1757171524749,-400.0,0.0003726,8]
[383911064,1757171524758,-400.0,0.0003726,8]
[383911065,1757171524768,-400.0,0.0003726,8]
[383911066,1757171524777,-400.0,0.0003726,8]
[383911067,1757171524787,-400.0,0.0003726,8]
[383911068,1757171524796,-400.0,0.0003726,8]
[383911069,1757171524806,-400.0,0.0003726,8]
[383911070,1757171524815,-400.0,0.0003726,8]
[383911071,1757171524825,-400.0,0.0003726,8]
[383911072,1757171524835,-513.66,0.0003726,8]
[383911073,1757171524845,-400.0,0.0003726,8]
[383911074,1757171524854,-675.35,0.0003726,8]
[383911075,1757171524863,-400.0,0.0003726,8]
[383911076,1757171524873,-400.0,0.0003726,8]
[383911077,1757171524882,-400.0,0.0003726,8]
[383911078,1757171524891,-400.0,0.0003726,8]
[383911079,1757171524901,-400.0,0.0003726,8]
[383911080,1757171524910,-400.0,0.0003726,8]
[383911081,1757171524919,-400.0,0.0003726,8]
[383911082,1757171524929,-546.31,0.0003726,8]
[383911083,1757171524938,-400.0,0.0003726,8]
[383911084,1757171524947,-400.0,0.0003726,8]
[383911085,1757171524956,-400.0,0.0003726,8]
[383911086,1757171524966,-416.66724717,0.0003726,8]
[383911087,1757171524975,-559.97,0.0003726,8]
[383911088,1757171524985,-408.07,0.0003726,8]
[383911089,1757171524994,-400.0,0.0003726,8]
[383911090,1757171525004,-400.0,0.0003726,8]
[383911091,1757171525014,-400.0,0.0003726,8]
[383911092,1757171525023,-928.94,0.0003726,8]
[383911093,1757171525033,-440.94,0.0003726,8]
[383911094,1757171525043,-499.33,0.0003726,8]
[383911095,1757171525052,-495.94,0.0003726,8]
[383911096,1757171525062,-400.0,0.0003726,8]
[383911097,1757171525072,-400.0,0.0003726,8]
[383911098,1757171525082,-400.0,0.0003726,8]
[383911099,1757171525092,-400.0,0.0003726,8]
[383911100,1757171525101,-400.0,0.0003726,8]
[383911101,1757171525111,-400.0,0.0003726,8]
[383911102,1757171525121,-400.0,0.0003726,8]
[383911103,1757171525131,-400.0,0.0003726,8]
[383911104,1757171525141,-400.0,0.0003726,8]
[383911105,1757171525151,-400.0,0.0003726,8]
[383911106,1757171525160,-400.0,0.0003726,8]
[383911107,1757171525170,-400.0,0.0003726,8]
[383911108,1757171525179,-400.0,0.0003726,8]
[383911109,1757171525189,-400.0,0.0003726,8]
[383911110,1757171525200,-766.11,0.0003726,8]
[383911111,1757171525209,-400.0,0.0003726,8]
[383911112,1757171525220,-400.0,0.0003726,8]
[383911113,1757171525230,-400.0,0.0003726,8]
[383911114,1757171525240,-442.65,0.0003726,8]
[383911115,1757171525250,-415.64546562,0.0003726,8]
[383911116,1757171525260,-400.0,0.0003726,8]
[383911117,1757171525270,-400.0,0.0003726,8]
[383911118,1757171525280,-400.0,0.0003726,8]
[383911119,1757171525289,-400.0,0.0003726,8]
[383911120,1757171525299,-410.17,0.0003726,8]
[383911121,1757171525308,-400.0,0.0003726,8]
[383911122,1757171525318,-400.0,0.0003726,8]
[383911123,1757171525327,-400.0,0.0003726,8]
[383911124,1757171525336,-535.64,0.0003726,8]
[383911125,1757171525346,-400.0,0.0003726,8]
[383911126,1757171525355,-400.0,0.0003726,8]
[383911127,1757171525364,-400.0,0.0003726,8]
[383911128,1757171525375,-400.0,0.0003726,8]
[383911129,1757171525385,-400.0,0.0003726,8]
[383911130,1757171525395,-400.0,0.0003726,8]
[383911131,1757171525404,-406.16326711,0.0003726,8]
[383911132,1757171525414,-400.0,0.0003726,8]
[383911133,1757171525423,-400.0,0.0003726,8]
[383911134,1757171525432,-400.0,0.0003726,8]
[383911135,1757171525442,-432.64,0.0003726,8]
[383911136,1757171525451,-400.0,0.0003726,8]
[383911137,1757171525462,-400.0,0.0003726,8]
[383911138,1757171525472,-653.85,0.0003726,8]
[383911139,1757171525482,-400.0,0.0003726,8]
[383911140,1757171525491,-400.0,0.0003726,8]
[383911141,1757171525501,-400.0,0.0003726,8]
[383911142,1757171525510,-400.0,0.0003726,8]
[383911143,1757171525520,-430.22,0.0003726,8]
[383911144,1757171525530,-400.0,0.0003726,8]
[383911145,1757171525541,-400.0,0.0003726,8]
[383911146,1757171525551,-400.0,0.0003726,8]
[383911147,1757171525564,-400.0,0.0003726,8]
[383911148,1757171525574,-400.0,0.0003726,8]
[383911149,1757171525583,-400.0,0.0003726,8]
[383911150,1757171525593,-400.0,0.0003726,8]
[383911151,1757171525602,-493.95,0.0003726,8]
[383911152,1757171525612,-400.0,0.0003726,8]
[383911153,1757171525621,-400.0,0.0003726,8]
[383911154,1757171525631,-400.0,0.0003726,8]
[383911155,1757171525641,-400.0,0.0003726,8]
[383911156,1757171525650,-400.0,0.0003726,8]
[383911157,1757171525660,-400.0,0.0003726,8]
[383911158,1757171525669,-400.0,0.0003726,8]
[383911159,1757171525678,-400.0,0.0003726,8]
[383911160,1757171525687,-400.0,0.0003726,8]
[383911161,1757171525697,-425.32,0.0003726,8]
[383911162,1757171525706,-430.44,0.0003726,8]
[383911163,1757171525716,-400.0,0.0003726,8]
[383911164,1757171525725,-469.95,0.0003726,8]
[383911165,1757171525735,-658.76,0.0003726,8]
[383911166,1757171525744,-1274.53,0.0003726,8]
[383911167,1757171525754,-460.86,0.0003726,8]
[383911168,1757171525763,-578.72,0.0003726,8]
[383911169,1757171525773,-400.0,0.0003726,8]
[383911170,1757171525782,-1619.0,0.0003726,8]
[383911171,1757171525792,-400.0,0.0003726,8]
[383911172,1757171525802,-408.29,0.0003726,8]
[383911173,1757171525811,-400.0,0.0003726,8]
[383911174,1757171525821,-530.59,0.0003726,8]
[383911175,1757171525831,-400.0,0.0003726,8]
[383911176,1757171525840,-400.0,0.0003726,8]
[383911177,1757171525850,-424.86,0.0003726,8]
[383911178,1757171525859,-467.63450975,0.0003726,8]
[383911179,1757171525870,-400.0,0.0003726,8]
[383911180,1757171525879,-956.04,0.0003726,8]
[383911181,1757171525888,-406.10523743,0.0003726,8]
[383911182,1757171525898,-541.48,0.0003726,8]
[383911183,1757171525907,-400.0,0.0003726,8]
[383911184,1757171525920,-400.0,0.0003726,8]
[383911185,1757171525930,-400.0,0.0003726,8]
[383911186,1757171525942,-400.0,0.0003726,8]
[383911187,1757171525953,-400.0,0.0003726,8]
[383911188,1757171525963,-735.46,0.0003726,8]
[383911189,1757171525972,-400.0,0.0003726,8]
[383911190,1757171525982,-400.0,0.0003726,8]
[383911191,1757171525991,-400.0,0.0003726,8]
[383911192,1757171526001,-400.0,0.0003726,8]
[383911193,1757171526010,-450.24,0.0003726,8]
[383911194,1757171526019,-407.34,0.0003726,8]
[383911195,1757171526029,-400.0,0.0003726,8]
[383911196,1757171526038,-400.0,0.0003726,8]
[383911197,1757171526047,-522.41,0.0003726,8]
[383911198,1757171526058,-468.39,0.0003726,8]
[383911199,1757171526068,-400.0,0.0003726,8]
[383911200,1757171526079,-455.66,0.0003726,8]
[383911201,1757171526089,-400.0,0.0003726,8]
[383911202,1757171526099,-409.86627865,0.0003726,8]
[383911203,1757171526109,-400.0,0.0003726,8]
[383911204,1757171526118,-400.0,0.0003726,8]
[383911205,1757171526129,-463.95,0.0003726,8]
[383911206,1757171526138,-400.0,0.0003726,8]
[383911207,1757171526148,-400.0,0.0003726,8]
[383911208,1757171526158,-420.09,0.0003726,8]
[383911209,1757171526167,-638.69,0.0003726,8]
[383911210,1757171526176,-400.0,0.0003726,8]
[383911211,1757171526186,-400.0,0.0003726,8]
[383911212,1757171526195,-208.39119839,0.0003726,8]
[383911213,1757171526204,-400.0,0.0003726,8]
[383911214,1757171526214,-400.0,0.0003726,8]
[383911215,1757171526224,-411.23939815,0.0003726,8]
[383911216,1757171526234,-491.96,0.0003726,8]
[383911217,1757171526244,-488.58,0.0003726,8]
[383911218,1757171526254,-400.0,0.0003726,8]
[383911219,1757171526264,-400.0,0.0003726,8]
[383911220,1757171526274,-400.0,0.0003726,8]
[383911221,1757171526284,-400.0,0.0003726,8]
[383911222,1757171526294,-400.0,0.0003726,8]
[383911223,1757171526305,-400.0,0.0003726,8]
[383911224,1757171526315,-400.0,0.0003726,8]
[383911225,1757171526326,-438.24839634,0.0003726,8]
[383911226,1757171526339,-400.0,0.0003726,8]
[383911227,1757171526350,-945.42,0.0003726,8]
[383911228,1757171526359,-447.74,0.0003726,8]
[383911229,1757171526369,-400.0,0.0003726,8]
[383911230,1757171526379,-400.0,0.0003726,8]
[383911231,1757171526389,-400.0,0.0003726,8]
[383911232,1757171526398,-400.0,0.0003726,8]
[383911233,1757171526407,-400.0,0.0003726,8]
[383911234,1757171526417,-400.0,0.0003726,8]
[383911235,1757171526427,-400.0,0.0003726,8]
[383911236,1757171526437,-400.0,0.0003726,8]
[383911237,1757171526447,-400.0,0.0003726,8]
[383911238,1757171526457,-400.0,0.0003726,8]
[383911239,1757171526467,-400.0,0.0003726,8]
[383911240,1757171526476,-400.0,0.0003726,8]
[383911241,1757171526486,-421.66592096,0.0003726,8]
[383911242,1757171526496,-400.0,0.0003726,8]
[383911243,1757171526506,-400.0,0.0003726,8]
[383911244,1757171526516,-400.0,0.0003726,8]
[383911245,1757171526526,-400.0,0.0003726,8]
[383911246,1757171526536,-400.0,0.0003726,8]
[383911247,1757171526546,-400.0,0.0003726,8]
[383911248,1757171526559,-400.0,0.0003726,8]
[383911249,1757171526568,-431.9845738,0.0003726,8]
[383911250,1757171526579,-400.0,0.0003726,8]
[383911251,1757171526589,-400.0,0.0003726,8]
[383911252,1757171526598,-400.0,0.0003726,8]
[383911253,1757171526610,-492.35,0.0003726,8]
[383911254,1757171526623,-400.0,0.0003726,8]
[383911255,1757171526633,-400.0,0.0003726,8]
[383911256,1757171526643,-400.0,0.0003726,8]
[383911257,1757171526652,-400.0,0.0003726,8]
[383911258,1757171526662,-400.0,0.0003726,8]
[383911259,1757171526672,-400.0,0.0003726,8]
[383911260,1757171526682,-400.0,0.0003726,8]
[383911261,1757171526692,-404.69,0.0003726,8]
[383911262,1757171526703,-400.0,0.0003726,8]
[383911263,1757171526713,-647.23,0.0003726,8]
[383911264,1757171526723,-400.0,0.0003726,8]
[383911265,1757171526734,-400.0,0.0003726,8]
[383911266,1757171526745,-400.0,0.0003726,8]
[383911267,1757171526755,-400.0,0.0003726,8]
[383911268,1757171526765,-400.0,0.0003726,8]
[383911269,1757171526776,-412.22038354,0.0003726,8]
[383911270,1757171526786,-400.0,0.0003726,8]
[383911271,1757171526796,-400.0,0.0003726,8]
[383911272,1757171526806,-400.0,0.0003726,8]
[383911273,1757171526816,-400.0,0.0003726,8]
[383911274,1757171526826,-474.84,0.0003726,8]
[383911275,1757171526836,-400.0,0.0003726,8]
[383911276,1757171526846,-400.0,0.0003726,8]
[383911277,1757171526855,-400.0,0.0003726,8]
[383911278,1757171526866,-400.0,0.0003726,8]
[383911279,1757171526878,-567.14,0.0003726,8]
[383911280,1757171526888,-400.0,0.0003726,8]
[383911281,1757171526898,-400.0,0.0003726,8]
[383911282,1757171526908,-246.41910847,0.0003726,8]
[383911283,1757171526918,-567.78,0.0003726,8]
[383911284,1757171526928,-400.0,0.0003726,8]
[383911285,1757171526938,-400.0,0.0003726,8]
[383911286,1757171526949,-400.0,0.0003726,8]
[383911287,1757171526959,-452.26,0.0003726,8]
[383911288,1757171526968,-407.06728466,0.0003726,8]
[383911289,1757171526978,-400.0,0.0003726,8]
[383911290,1757171526988,-400.0,0.0003726,8]
[383911291,1757171526999,-400.0,0.0003726,8]
[383911292,1757171527008,-408.29,0.0003726,8]
[383911293,1757171527021,-400.0,0.0003726,8]
[383911294,1757171527032,-1289.31,0.0003726,8]
[383911295,1757171527043,-500.0,0.0003726,8]
[383911296,1757171527053,-440.59,0.0003726,8]
[383911297,1757171527062,-400.0,0.0003726,8]
[383911298,1757171527072,-400.0,0.0003726,8]
[383911299,1757171527082,-580.24,0.0003726,8]
[383911300,1757171527092,-661.4,0.0003726,8]
[383911301,1757171527102,-408.25,0.0003726,8]
[383911302,1757171527112,-428.75,0.0003726,8]
[383911303,1757171527122,-420.27466889,0.0003726,8]
[383911304,1757171527132,-400.0,0.0003726,8]
[383911305,1757171527142,-400.0,0.0003726,8]
[383911306,1757171527151,-400.0,0.0003726,8]
[383911307,1757171527161,-800.0,0.0003726,120]
[383911308,1757171527171,-400.0,0.0003726,8]
[383911309,1757171527182,-400.0,0.0003726,8]
[383911310,1757171527192,-400.0,0.0003726,8]
[383911311,1757171527201,-400.0,0.0003726,8]
[383911312,1757171527211,-400.0,0.0003726,8]
[383911313,1757171527221,-508.29,0.0003726,8]
[383911314,1757171527231,-400.0,0.0003726,8]
[383911315,1757171527241,-400.0,0.0003726,8]
[383911316,1757171527251,-400.0,0.0003726,8]
[383911317,1757171527260,-400.0,0.0003726,8]
[383911318,1757171527270,-400.0,0.0003726,8]
[383911319,1757171527279,-400.0,0.0003726,8]
[383911320,1757171527289,-6447.51,0.0003726,5]
[383911321,1757171527299,-400.0,0.0003726,8]
[383911322,1757171527308,-400.0,0.0003726,8]
[383911323,1757171527318,-430.2,0.0003726,8]
[383911324,1757171527328,-526.9,0.0003726,8]
[383911325,1757171527338,-400.0,0.0003726,8]
[383911326,1757171527348,-400.0,0.0003726,8]
[383911327,1757171527358,-541.21,0.0003726,8]
[383911328,1757171527369,-662.69,0.0003726,8]
[383911329,1757171527380,-400.0,0.0003726,8]
[383911330,1757171527391,-400.0,0.0003726,8]
[383911331,1757171527400,-400.0,0.0003726,8]
[383911332,1757171527410,-580.33,0.0003726,8]
[383911333,1757171527420,-400.0,0.0003726,8]
[383911334,1757171527430,-513.04,0.0003726,8]
[383911335,1757171527441,-400.0,0.0003726,8]
[383911336,1757171527451,-400.0,0.0003726,8]
[383911337,1757171527462,-400.0,0.0003726,8]
[383911338,1757171527472,-745.7,0.0003726,8]
[383911339,1757171527481,-400.0,0.0003726,8]
[383911340,1757171527491,-400.0,0.0003726,8]
[383911341,1757171527501,-546.38,0.0003726,8]
[383911342,1757171527512,-400.0,0.0003726,8]
[383911343,1757171527522,-400.0,0.0003726,8]
[383911344,1757171527532,-400.0,0.0003726,8]
[383911345,1757171527542,-424.59,0.0003726,8]
[383911347,1757171527552,-400.0,0.0003726,8]
[383911348,1757171527566,-400.0,0.0003726,8]
[383911349,1757171527576,-400.0,0.0003726,8]
[383911350,1757171527586,-400.0,0.0003726,8]
[383911351,1757171527596,-400.0,0.0003726,8]
[383911352,1757171527607,-494.65,0.0003726,8]
[383911353,1757171527617,-400.0,0.0003726,8]
[383911354,1757171527629,-400.0,0.0003726,8]
[383911355,1757171527640,-423.02,0.0003726,8]
[383911356,1757171527651,-485.39,0.0003726,8]
[383911357,1757171527661,-400.0,0.0003726,8]
[383911358,1757171527671,-400.0,0.0003726,8]
[383911359,1757171527681,-400.0,0.0003726,8]
[383911360,1757171527691,-825.62,0.0003726,8]
[383911361,1757171527701,-526.47,0.0003726,8]
[383911362,1757171527711,-400.0,0.0003726,8]
[383911363,1757171527722,-400.0,0.0003726,8]
[383911364,1757171527732,-400.0,0.0003726,8]
[383911365,1757171527742,-407.56310362,0.0003726,8]
[383911366,1757171527752,-400.0,0.0003726,8]
[383911367,1757171527763,-400.0,0.0003726,8]
[383911368,1757171527773,-516.31,0.0003726,8]
[383911369,1757171527783,-403.26,0.0003726,8]
[383911370,1757171527793,-500.5280387,0.0003726,8]
[383911371,1757171527803,-443.32,0.0003726,8]
[383911372,1757171527813,-497.89,0.0003726,8]
[383911373,1757171527824,-400.0,0.0003726,7]
[383911374,1757171527834,-625.5,0.0003726,8]
[383911375,1757171527845,-501.87,0.0003726,8]
[383911376,1757171527855,-400.0,0.0003726,8]
[383911377,1757171527865,-400.0,0.0003726,8]
[383911378,1757171527876,-622.59,0.0003726,8]
[383911379,1757171527886,-400.0,0.0003726,8]
[383911380,1757171527896,-400.0,0.0003726,8]
[383911381,1757171527906,-400.0,0.0003726,8]
[383911382,1757171527916,-704.99,0.0003726,8]
[383911383,1757171527926,-810.84,0.0003726,8]
[383911384,1757171527937,-438.33,0.0003726,8]
[383911385,1757171527947,-400.0,0.0003726,8]
[383911386,1757171527957,-400.0,0.0003726,8]
[383911387,1757171527967,-400.0,0.0003726,8]
[383911388,1757171527976,-409.9,0.0003726,8]
[383911389,1757171527986,-400.0,0.0003726,8]
[383911390,1757171527996,-763.55,0.0003726,8]
[383911391,1757171528006,-400.0,0.0003726,8]
[383911392,1757171528016,-400.0,0.0003726,8]
[383911393,1757171528026,-400.0,0.0003726,8]
[383911394,1757171528037,-400.0,0.0003726,8]
[383911395,1757171528047,-400.0,0.0003726,8]
[383911396,1757171528057,-400.0,0.0003726,8]
[383911397,1757171528068,-505.84,0.0003726,8]
[383911398,1757171528078,-469.66,0.0003726,8]
[383911399,1757171528089,-400.0,0.0003726,8]
[383911400,1757171528099,-400.0,0.0003726,8]
[383911401,1757171528109,-492.82,0.0003726,8]
[383911402,1757171528119,-400.0,0.0003726,8]
[383911403,1757171528130,-432.82,0.0003726,8]
[383911404,1757171528140,-400.0,0.0003726,8]
[383911405,1757171528150,-400.0,0.0003726,8]
[383911406,1757171528161,-400.0,0.0003726,8]
[383911407,1757171528171,-400.0,0.0003726,8]
[383911408,1757171528181,-708.31,0.0003726,8]
[383911409,1757171528192,-400.0,0.0003726,8]
[383911410,1757171528202,-447.54,0.0003726,8]
[383911411,1757171528212,-400.0,0.0003726,8]
[383911412,1757171528223,-902.07,0.0003726,8]
[383911413,1757171528232,-488.65,0.0003726,8]
[383911414,1757171528242,-410.66875156,0.0003726,8]
[383911415,1757171528252,-400.0,0.0003726,8]
[383911416,1757171528262,-414.13,0.0003726,8]
[383911417,1757171528272,-400.0,0.0003726,8]
[383911418,1757171528282,-697.99,0.0003726,8]
[383911419,1757171528292,-403.26,0.0003726,8]
[383911420,1757171528302,-400.0,0.0003726,8]
[383911421,1757171528312,-400.0,0.0003726,8]
[383911422,1757171528322,-762.44,0.0003726,8]
[383911423,1757171528332,-400.0,0.0003726,8]
[383911424,1757171528341,-400.0,0.0003726,8]
[383911425,1757171528351,-439.57,0.0003726,8]
[383911426,1757171528362,-400.0,0.0003726,8]
[383911427,1757171528372,-536.59,0.0003726,8]
[383911428,1757171528382,-416.22930455,0.0003726,8]
[383911429,1757171528392,-400.0,0.0003726,8]
[383911430,1757171528402,-400.0,0.0003726,8]
[383911431,1757171528412,-488.95,0.0003726,8]
[383911432,1757171528422,-400.0,0.0003726,8]
[383911433,1757171528431,-418.79882839,0.0003726,8]
[383911434,1757171528442,-473.09,0.0003726,8]
[383911435,1757171528452,-400.0,0.0003726,8]
[383911436,1757171528462,-409.49804373,0.0003726,8]
[383911437,1757171528471,-400.0,0.0003726,8]
[383911438,1757171528481,-400.0,0.0003726,8]
[383911439,1757171528491,-400.0,0.0003726,8]
[383911440,1757171528501,-400.0,0.0003726,8]
[383911441,1757171528512,-489.25,0.0003726,8]
[383911442,1757171528522,-400.0,0.0003726,8]
[383911443,1757171528532,-400.0,0.0003726,8]
[383911444,1757171528771,-400.0,0.0003726,8]
[383911445,1757171528790,-400.0,0.0003726,8]
[383911446,1757171528804,-400.0,0.0003726,8]
[383911447,1757171528814,-400.0,0.0003726,8]
[383911448,1757171528824,-400.0,0.0003726,8]
[383911449,1757171528834,-764.96,0.0003726,8]
[383911450,1757171528846,-400.0,0.0003726,8]
[383911451,1757171528856,-400.0,0.0003726,8]
[383911452,1757171528866,-400.0,0.0003726,8]
[383911453,1757171528877,-406.21,0.0003726,8]
[383911454,1757171528887,-400.0,0.0003726,8]
[383911455,1757171528897,-400.0,0.0003726,8]